bitfinex/quotes_BTCUSD_20250922
["timestamp","ask_amount","ask_price","bid_price","bid_amount"]
[1758571001706,0.01062515,112420.0,112410.0,1.24191754]
[1758571001908,0.01062515,112420.0,112410.0,0.85395754]
[1758571002151,0.01062515,112420.0,112410.0,1.24191754]
[1758571002352,0.06062515,112420.0,112410.0,1.24191754]
[1758571002575,0.06062515,112420.0,112410.0,1.14575754]
[1758571002880,0.06062515,112420.0,112410.0,1.24191754]
[1758571003090,0.06062515,112420.0,112410.0,0.40899428]
[1758571003427,0.49648336,112420.0,112410.0,0.77375428]
[1758571003630,0.06062515,112420.0,112410.0,0.70075428]
[1758571003818,0.06062515,112420.0,112410.0,0.79691428]
[1758571004238,0.06062515,112420.0,112410.0,0.70075428]
[1758571004443,0.06062515,112420.0,112410.0,0.40899428]
[1758571004653,0.49648336,112420.0,112410.0,0.77371428]
[1758571004849,0.49648336,112420.0,112410.0,0.79687428]
[1758571005070,0.06062515,112420.0,112410.0,0.79687428]
[1758571008448,0.06062515,112420.0,112410.0,0.38583428]
[1758571008655,0.06062515,112420.0,112410.0,0.77367428]
[1758571008922,0.52094336,112420.0,112410.0,0.77367428]
[1758571009300,0.49844336,112420.0,112410.0,0.20273417]
[1758571009508,0.74597901,112420.0,112410.0,0.76841428]
[1758571009712,0.56807473,112420.0,112410.0,0.76841428]
[1758571010183,0.56807473,112420.0,112410.0,0.77049428]
[1758571010427,0.56611473,112420.0,112410.0,0.77049428]
[1758571010634,0.56807473,112420.0,112410.0,0.77049428]
[1758571011444,0.3101208,112420.0,112410.0,0.77049428]
[1758571011651,0.74899901,112420.0,112410.0,0.20273417]
[1758571011886,0.74899901,112420.0,112410.0,0.59041417]
[1758571014300,0.75726404,112420.0,112410.0,0.59041417]
[1758571014903,0.78741594,112420.0,112410.0,0.1174645]
[1758571015126,0.80394538,112420.0,112410.0,0.37336024]
[1758571015877,0.81014567,112420.0,112410.0,0.30648]
[1758571016244,0.81014567,112420.0,112410.0,0.30248]
[1758571016245,0.80914567,112420.0,112410.0,0.30248]
[1758571016446,0.81014567,112420.0,112410.0,0.30448]
[1758571017089,0.80914567,112420.0,112410.0,0.30244]
[1758571017261,0.80714567,112420.0,112410.0,0.321684]
[1758571017461,0.80914567,112420.0,112410.0,0.323684]
[1758571017664,0.80914567,112420.0,112410.0,0.29344]
[1758571017863,0.80814567,112420.0,112410.0,0.29244]
[1758571018049,0.81314567,112420.0,112410.0,0.29344]
[1758571018700,0.83989262,112420.0,112410.0,0.29344]
[1758571019329,1.17989262,112420.0,112410.0,0.29344]
[1758571019940,1.17989262,112420.0,112410.0,0.322784]
[1758571020606,1.17989262,112420.0,112410.0,0.38858251]
[1758571021553,1.17989369,112420.0,112410.0,0.38858251]
[1758571022193,0.74403548,112420.0,112410.0,0.38858251]
[1758571022369,1.17989369,112420.0,112410.0,0.38858251]
[1758571023047,1.17989369,112420.0,112410.0,0.35923851]
[1758571026395,2.19384557,112420.0,112410.0,0.06779851]
[1758571026609,2.19384557,112420.0,112410.0,0.29324]
[1758571026849,2.16777169,112420.0,112410.0,0.29324]
[1758571027271,2.19384557,112420.0,112410.0,0.29324]
[1758571027478,2.19384557,112420.0,112410.0,0.322564]
[1758571027941,2.62970378,112420.0,112410.0,0.322564]
[1758571028147,2.62970378,112420.0,112410.0,0.031324]
[1758571028355,2.62970378,112420.0,112410.0,0.002]
[1758571028795,3.71961146,112420.0,112410.0,0.002]
[1758571029338,2.73879941,112420.0,112410.0,0.002]
[1758571029537,3.02999941,112420.0,112410.0,0.002]
[1758571029938,2.73879941,112420.0,112410.0,0.002]
[1758571030140,3.02999941,112420.0,112410.0,0.002]
[1758571032104,3.11526908,112420.0,112410.0,0.002]
[1758571033185,4.09608113,112420.0,112410.0,0.002]
[1758571033299,2.13441703,112420.0,112410.0,0.002]
[1758571033505,3.08911385,112420.0,112410.0,0.002]
[1758571033982,2.32482018,112420.0,112410.0,0.002]
[1758571034110,2.26419118,112420.0,112410.0,0.002]
[1758571034505,1.71986618,112420.0,112410.0,0.00397]
[1758571034723,1.70656083,112420.0,112410.0,0.00717]
[1758571034949,2.03867818,112420.0,112410.0,0.002]
[1758571038773,2.03550818,112420.0,112410.0,0.002]
[1758571039403,2.03856818,112420.0,112410.0,0.002]
[1758571039603,2.12383785,112420.0,112410.0,0.002]
[1758571039896,2.14991173,112420.0,112410.0,0.002]
[1758571040491,2.41483785,112420.0,112410.0,0.002]
[1758571040718,2.44091173,112420.0,112410.0,0.002]
[1758571040914,2.41483785,112420.0,112410.0,0.002]
[1758571041233,2.44091173,112420.0,112410.0,0.002]
[1758571041394,3.42172378,112420.0,112410.0,0.002]
[1758571045867,2.44091173,112420.0,112410.0,0.002]
[1758571046686,3.42172378,112420.0,112410.0,0.002]
[1758571047675,3.3956499,112420.0,112410.0,0.002]
[1758571047887,3.42172378,112420.0,112410.0,0.002]
[1758571050098,3.42152378,112420.0,112410.0,0.002]
[1758571050663,3.13072378,112420.0,112410.0,0.002]
[1758571050886,3.42152378,112420.0,112410.0,0.002]
[1758571052765,3.13072378,112420.0,112410.0,0.002]
[1758571052988,3.42152378,112420.0,112410.0,0.002]
[1758571053421,3.3954499,112420.0,112410.0,0.002]
[1758571053751,3.39552013,112420.0,112410.0,0.002]
[1758571053965,3.39548013,112420.0,112410.0,0.002]
[1758571056127,3.42155401,112420.0,112410.0,0.002]
[1758571056358,3.39548013,112420.0,112410.0,0.002]
[1758571056790,3.10166013,112420.0,112410.0,0.00403]
[1758571057085,2.41152808,112420.0,112410.0,0.002]
[1758571057311,2.12084808,112420.0,112410.0,0.002]
[1758571057536,2.41152808,112420.0,112410.0,0.002]
[1758571057722,2.12084808,112420.0,112410.0,0.002]
[1758571057950,1.44402806,112420.0,112410.0,0.00722]
[1758571058166,1.82096541,112420.0,112410.0,0.03167]
[1758571058611,1.82096541,112420.0,112410.0,0.00722]
[1758571058827,1.82096541,112420.0,112410.0,0.03167]
[1758571059249,1.81478378,112420.0,112410.0,0.03167]
[1758571059458,1.6706325,112420.0,112410.0,0.03167]
[1758571059669,1.91662352,112420.0,112410.0,0.03167]
[1758571059880,1.93113888,112420.0,112410.0,0.03167]
[1758571060086,1.9000347,112420.0,112410.0,0.03167]
[1758571060731,1.93113945,112420.0,112410.0,0.03167]
[1758571060932,1.91455025,112420.0,112410.0,0.03167]
[1758571061138,1.92284485,112420.0,112410.0,0.03167]
[1758571061342,1.9000347,112420.0,112410.0,0.03167]
[1758571061507,1.9311384,112420.0,112410.0,0.03167]
[1758571062293,1.8811384,112420.0,112410.0,0.03167]
[1758571062516,1.9311384,112420.0,112410.0,0.03167]
[1758571063354,1.9332184,112420.0,112410.0,0.00403]
[1758571063572,1.9562884,112420.0,112410.0,0.00403]
[1758571064158,3.31604012,112420.0,112410.0,0.002]
[1758571064377,3.36891008,112420.0,112410.0,0.002]
[1758571064630,3.36887008,112420.0,112410.0,0.002]
[1758571065941,0.64327504,112390.0,112380.0,0.06769292]
[1758571066142,1.35432659,112390.0,112380.0,0.00319]
[1758571066342,1.70641394,112390.0,112380.0,0.00522]
[1758571066551,1.73316859,112390.0,112380.0,0.00522]
[1758571066894,1.40623124,112390.0,112380.0,0.00522]
[1758571067519,1.4149514,112390.0,112380.0,0.00522]
[1758571068351,1.38979752,112390.0,112380.0,0.01022]
[1758571068565,1.38779752,112390.0,112380.0,0.00622]
[1758571068766,1.36472752,112390.0,112380.0,0.00622]
[1758571069235,1.36672752,112390.0,112380.0,0.00722]
[1758571069389,1.36672752,112390.0,112380.0,0.03167]
[1758571070014,1.36672752,112390.0,112380.0,0.04150069]
[1758571071095,1.03979017,112390.0,112380.0,0.01705069]
[1758571071247,0.68174985,112390.0,112380.0,0.04150069]
[1758571071620,1.33562455,112390.0,112380.0,0.04150069]
[1758571072309,1.33562455,112390.0,112380.0,0.33190069]
[1758571072516,1.0086872,112390.0,112380.0,0.33190069]
[1758571074230,1.0086872,112390.0,112380.0,0.50986829]
[1758571074645,0.41058353,112390.0,112380.0,0.59513796]
[1758571074875,0.6385353,112390.0,112380.0,0.69129796]
[1758571075085,0.6385353,112390.0,112380.0,0.12677036]
[1758571075287,0.6385353,112390.0,112380.0,0.30473796]
[1758571075490,0.6385353,112390.0,112380.0,0.69129796]
[1758571075692,0.08364618,112390.0,112380.0,0.69129796]
[1758571075894,0.41058353,112390.0,112380.0,0.69129796]
[1758571076414,0.5885353,112390.0,112380.0,0.30473796]
[1758571076648,0.6385353,112390.0,112380.0,0.12677036]
[1758571076864,0.6385353,112390.0,112380.0,0.69125796]
[1758571077071,0.08364618,112390.0,112380.0,0.69125796]
[1758571077251,0.41058353,112390.0,112380.0,0.69125796]
[1758571077889,0.5885353,112390.0,112380.0,0.69125796]
[1758571078770,0.6385353,112390.0,112380.0,0.69125796]
[1758571078957,0.5885353,112390.0,112380.0,0.69125796]
[1758571079363,0.46058353,112390.0,112380.0,0.69125796]
[1758571079551,0.41058353,112390.0,112380.0,0.69125796]
[1758571079741,0.41058353,112390.0,112380.0,0.30473796]
[1758571079942,0.46058353,112390.0,112380.0,0.69121796]
[1758571080186,0.6385353,112390.0,112380.0,0.30473796]
[1758571080439,0.6385353,112390.0,112380.0,0.51325036]
[1758571080647,1.02209455,112390.0,112380.0,0.29228]
[1758571080860,1.02209455,112390.0,112380.0,0.29443]
[1758571081080,1.02209455,112390.0,112380.0,0.002]
[1758571081266,1.38800723,112390.0,112380.0,0.29224]
[1758571081541,1.38800723,112390.0,112380.0,0.3040814]
[1758571081747,1.39550723,112390.0,112380.0,0.3040814]
[1758571082177,1.39550723,112390.0,112380.0,0.0138414]
[1758571082401,1.39550723,112390.0,112380.0,0.002]
[1758571082402,1.42158111,112390.0,112380.0,0.002]
[1758571082854,1.42986734,112390.0,112380.0,0.002]
[1758571087025,1.42986618,112390.0,112380.0,0.002]
[1758571088180,1.42673618,112390.0,112380.0,0.002]
[1758571088389,1.42986618,112390.0,112380.0,0.002]
[1758571088598,1.42673618,112390.0,112380.0,0.00415]
[1758571088828,1.42673618,112390.0,112380.0,0.002]
[1758571089053,1.42986618,112390.0,112380.0,0.002]
[1758571090441,3.61400753,112390.0,112380.0,0.002]
[1758571090639,3.06932468,112390.0,112380.0,0.002]
[1758571091001,3.35940468,112390.0,112380.0,0.002]
[1758571091200,3.90760036,112390.0,112380.0,0.002]
[1758571092058,3.88152648,112390.0,112380.0,1e-08]
[1758571092295,3.95760036,112390.0,112380.0,1e-08]
[1758571093538,0.51798344,112370.0,112360.0,0.0002]
[1758571093782,1.73772664,112370.0,112360.0,0.0002]
[1758571094083,1.47728664,112370.0,112360.0,0.0002]
[1758571094283,1.50404699,112370.0,112360.0,0.0002]
[1758571094430,1.55404699,112370.0,112360.0,0.0002]
[1758571094633,1.55404699,112370.0,112360.0,0.00034092]
[1758571095039,1.59921836,112370.0,112360.0,0.00034092]
[1758571095283,1.56921131,112370.0,112360.0,0.00236092]
[1758571095688,1.57121131,112370.0,112360.0,0.00234092]
[1758571096335,1.56292578,112370.0,112360.0,0.00234092]
[1758571097645,1.56292578,112370.0,112360.0,0.00760092]
[1758571098590,1.56292578,112370.0,112360.0,0.00436092]
[1758571098983,2.43710878,112370.0,112360.0,0.00436092]
[1758571099201,2.43706805,112370.0,112360.0,0.00436092]
[1758571099408,2.44014805,112370.0,112360.0,0.00234092]
[1758571099614,2.7564851,112370.0,112360.0,0.00234092]
[1758571099837,2.87190667,112370.0,112360.0,0.00234092]
[1758571100326,2.90719981,112370.0,112360.0,0.00234092]
[1758571100531,0.22799928,112360.0,112350.0,4e-05]
[1758571100736,6.16819419,112360.0,112350.0,0.00024417]
[1758571100937,6.19730419,112360.0,112350.0,0.00024417]
[1758571101192,6.22406955,112360.0,112350.0,0.00024417]
[1758571101748,5.93414955,112360.0,112350.0,0.00024417]
[1758571101954,5.55657455,112360.0,112350.0,0.00224417]
[1758571102556,5.26665455,112360.0,112350.0,0.00224417]
[1758571102754,5.55657455,112360.0,112350.0,0.00224417]
[1758571102965,5.56107455,112360.0,112350.0,0.00224417]
[1758571103167,5.56105147,112360.0,112350.0,0.00224417]
[1758571103414,3.94864951,112360.0,112350.0,0.00224417]
[1758571103791,3.95614951,112360.0,112350.0,0.00224417]
[1758571104005,3.66622951,112360.0,112350.0,0.00224417]
[1758571104229,3.95610951,112360.0,112350.0,0.00224417]
[1758571104611,3.92973246,112360.0,112350.0,0.00224417]
[1758571106379,3.95610951,112360.0,112350.0,0.00224417]
[1758571107065,3.98314047,112360.0,112350.0,0.00224417]
[1758571107479,2.82100207,112360.0,112350.0,0.00224417]
[1758571107693,3.98310047,112360.0,112350.0,0.00224417]
[1758571108517,3.48230147,112360.0,112350.0,0.00224417]
[1758571108879,3.30009339,112360.0,112350.0,0.00224417]
[1758571109264,2.88826939,112360.0,112350.0,0.00224417]
[1758571109465,2.71601239,112360.0,112350.0,0.00224417]
[1758571109878,2.61187239,112360.0,112350.0,0.00224417]
[1758571111576,2.61183239,112360.0,112350.0,0.00224417]
[1758571114634,2.58164143,112360.0,112350.0,0.00224417]
[1758571114830,2.58164143,112360.0,112350.0,0.00440417]
[1758571114831,2.55526438,112360.0,112350.0,0.00440417]
[1758571115059,2.17433638,112360.0,112350.0,0.00440417]
[1758571115408,2.17431303,112360.0,112350.0,0.00224417]
[1758571115610,2.14676603,112360.0,112350.0,0.00440417]
[1758571115835,1.58929336,112360.0,112350.0,0.00744417]
[1758571116036,1.58929336,112360.0,112350.0,0.03149417]
[1758571117697,1.58929336,112360.0,112350.0,0.00744417]
[1758571117873,1.61223327,112360.0,112350.0,0.00744417]
[1758571118094,1.61430327,112360.0,112350.0,0.00744417]
[1758571118534,1.58929327,112360.0,112350.0,0.03149417]
[1758571119150,1.53929327,112360.0,112350.0,0.03149417]
[1758571119350,1.53934607,112360.0,112350.0,0.03149417]
[1758571119584,1.58934607,112360.0,112350.0,0.04426759]
[1758571119723,1.2493469,112360.0,112350.0,0.04426759]
[1758571120291,1.5893469,112360.0,112350.0,0.04426759]
[1758571122888,1.58936916,112360.0,112350.0,0.07322759]
[1758571123502,1.58938012,112360.0,112350.0,0.07322759]
[1758571125385,1.53938012,112360.0,112350.0,0.07322759]
[1758571125626,1.58938012,112360.0,112350.0,0.07322759]
[1758571125986,1.64176717,112360.0,112350.0,0.00224417]
[1758571126502,1.63969717,112360.0,112350.0,0.00440417]
[1758571126733,1.61332012,112360.0,112350.0,0.00744417]
[1758571127180,1.56332012,112360.0,112350.0,0.00744417]
[1758571127387,1.61332012,112360.0,112350.0,0.00744417]
[1758571128011,1.61540012,112360.0,112350.0,0.00440417]
[1758571128221,1.61540012,112360.0,112350.0,0.00224417]
[1758571128625,1.64177717,112360.0,112350.0,0.00224417]
[1758571130483,1.64177717,112360.0,112350.0,0.00744417]
[1758571130739,1.59247012,112360.0,112350.0,0.00224417]
[1758571130910,1.64178717,112360.0,112350.0,0.00224417]
[1758571131114,1.64488717,112360.0,112350.0,0.00224417]
[1758571132162,2.0465478,112360.0,112350.0,0.00224417]
[1758571133379,1.7571878,112360.0,112350.0,0.00224417]
[1758571134384,1.73015684,112360.0,112350.0,0.00224417]
[1758571134597,1.70067979,112360.0,112350.0,0.00440417]
[1758571135003,1.70067979,112360.0,112350.0,0.00224417]
[1758571136326,1.70067979,112360.0,112350.0,0.00440417]
[1758571136531,1.70067979,112360.0,112350.0,0.00744417]
[1758571136734,1.54038012,112360.0,112350.0,0.00744417]
[1758571136945,1.54038012,112360.0,112350.0,0.03149417]
[1758571137173,1.61332012,112360.0,112350.0,0.00744417]
[1758571137377,1.61539012,112360.0,112350.0,0.00744417]
[1758571137618,1.61332012,112360.0,112350.0,0.00744417]
[1758571137828,0.73409902,112360.0,112350.0,0.03100417]
[1758571138038,0.78409902,112360.0,112350.0,0.06689947]
[1758571138247,1.59038012,112360.0,112350.0,0.06689947]
[1758571138463,1.54246012,112360.0,112350.0,0.06385947]
[1758571138677,1.64312884,112360.0,112350.0,0.00224417]
[1758571138883,1.59038012,112360.0,112350.0,0.00740417]
[1758571139060,1.59246012,112360.0,112350.0,0.00740417]
[1758571139295,1.61646012,112360.0,112350.0,0.00435417]
[1758571139527,1.64312884,112360.0,112350.0,0.00435417]
[1758571139974,1.64312884,112360.0,112350.0,0.00224417]
[1758571140646,1.64312884,112360.0,112350.0,0.00435417]
[1758571140890,1.64312884,112360.0,112350.0,0.00224417]
[1758571141522,1.64623884,112360.0,112350.0,0.00224417]
[1758571141813,1.64312884,112360.0,112350.0,0.00224417]
[1758571142502,1.64762884,112360.0,112350.0,0.00224417]
[1758571142716,1.64554884,112360.0,112350.0,0.00224417]
[1758571142938,1.64554884,112360.0,112350.0,0.00435417]
[1758571142939,1.64755884,112360.0,112350.0,0.00435417]
[1758571143606,1.64755884,112360.0,112350.0,0.00224417]
[1758571144074,1.65073884,112360.0,112350.0,0.00224417]
[1758571144274,2.05215947,112360.0,112350.0,0.00224417]
[1758571144487,2.02512851,112360.0,112350.0,0.00224417]
[1758571144955,2.05215947,112360.0,112350.0,0.00224417]
[1758571145172,1.15287011,112360.0,112350.0,0.00224417]
[1758571145379,2.02512851,112360.0,112350.0,0.00224417]
[1758571147737,2.76611851,112360.0,112350.0,0.00224417]
[1758571148988,2.79314947,112360.0,112350.0,0.00224417]
[1758571149410,2.79314947,112360.0,112350.0,1e-08]
[1758571149627,2.79314947,112360.0,112330.0,0.0002]
[1758571149628,0.61320234,112340.0,112330.0,0.0002]
[1758571149833,1.08036535,112340.0,112330.0,0.00034094]
[1758571150102,1.10638535,112340.0,112330.0,0.00550094]
[1758571150327,1.68476452,112340.0,112330.0,0.00034094]
[1758571150573,0.84228484,112340.0,112330.0,0.00034094]
[1758571150790,1.82133659,112340.0,112330.0,0.00034094]
[1758571151022,1.82444659,112340.0,112330.0,0.00034094]
[1758571151241,1.82644659,112340.0,112330.0,0.00634094]
[1758571151436,1.82844659,112340.0,112330.0,0.00634094]
[1758571151875,1.82533443,112340.0,112330.0,0.00634094]
[1758571152404,1.79866571,112340.0,112330.0,0.00634094]
[1758571152634,1.80177571,112340.0,112330.0,0.00634094]
[1758571153307,1.35992868,112340.0,112330.0,0.03506094]
[1758571153531,1.30165308,112340.0,112330.0,0.03506094]
[1758571153735,1.35165034,112340.0,112330.0,0.05389337]
[1758571153939,1.00544923,112340.0,112330.0,0.05389337]
[1758571154141,1.00544923,112340.0,112330.0,0.03506094]
[1758571154345,1.67283659,112340.0,112330.0,0.03506094]
[1758571154916,0.69067451,112340.0,112330.0,0.03506094]
[1758571155286,0.69067451,112340.0,112330.0,0.21310776]
[1758571155488,1.15086639,112340.0,112330.0,0.25224421]
[1758571155692,0.46643977,112340.0,112330.0,0.54120421]
[1758571155918,1.15136639,112340.0,112330.0,0.54120421]
[1758571156290,1.32939736,112340.0,112330.0,0.54120421]
[1758571156943,1.15136639,112340.0,112330.0,0.54120421]
[1758571157161,1.15136639,112340.0,112330.0,0.36315739]
[1758571157162,1.32939736,112340.0,112330.0,0.36315739]
[1758571157638,1.67941472,112340.0,112330.0,0.30046094]
[1758571157849,1.67941472,112340.0,112330.0,0.30061094]
[1758571158055,0.67462264,112340.0,112330.0,0.30061094]
[1758571158266,1.32939736,112340.0,112330.0,0.32489094]
[1758571159469,1.65678472,112340.0,112330.0,0.32489094]
[1758571159680,1.65678472,112340.0,112330.0,0.38483022]
[1758571160179,1.32939736,112340.0,112330.0,0.38483022]
[1758571160561,1.32939736,112340.0,112330.0,0.56287704]
[1758571161117,0.67462264,112340.0,112330.0,0.56287704]
[1758571161373,1.15136639,112340.0,112330.0,0.56287704]
[1758571161589,1.32939736,112340.0,112330.0,0.56287704]
[1758571162443,0.49659167,112340.0,112330.0,0.56287704]
[1758571162643,1.15136639,112340.0,112330.0,0.56287704]
[1758571163046,1.33389736,112340.0,112330.0,0.38483022]
[1758571163245,1.66331472,112340.0,112330.0,0.06839022]
[1758571163448,1.69643472,112340.0,112330.0,0.27614094]
[1758571163686,1.69794472,112340.0,112330.0,0.27614094]
[1758571164548,0.69112264,112340.0,112330.0,0.48369776]
[1758571164769,1.34589736,112340.0,112330.0,0.30565094]
[1758571164970,1.34939736,112340.0,112330.0,0.48369776]
[1758571165213,1.34939736,112340.0,112330.0,0.51743302]
[1758571165424,1.67881472,112340.0,112330.0,0.0663862]
[1758571165574,1.72811344,112340.0,112330.0,0.47525776]
[1758571165778,1.17136639,112340.0,112330.0,0.47845776]
[1758571165985,1.34939736,112340.0,112330.0,0.47845776]
[1758571166160,1.17136639,112340.0,112330.0,0.47845776]
[1758571166533,1.17136639,112340.0,112330.0,0.50273776]
[1758571166683,1.12619502,112340.0,112330.0,0.58046171]
[1758571166893,1.17136639,112340.0,112330.0,0.58046171]
[1758571167301,0.51659167,112340.0,112330.0,0.58046171]
[1758571167532,1.17136639,112340.0,112330.0,0.58046171]
[1758571167732,0.51659167,112340.0,112330.0,0.29162171]
[1758571167919,1.34939736,112340.0,112330.0,0.01157094]
[1758571168118,1.34939736,112340.0,112330.0,0.57471776]
[1758571168360,1.17136639,112340.0,112330.0,0.66535292]
[1758571169125,1.34939736,112340.0,112330.0,0.66535292]
[1758571169327,0.51659167,112340.0,112330.0,0.66535292]
[1758571169523,0.51659167,112340.0,112330.0,0.74971438]
[1758571169727,0.76382713,112340.0,112330.0,0.83498405]
[1758571169949,1.14121449,112340.0,112330.0,0.83498405]
[1758571170118,1.14121449,112340.0,112330.0,0.44990405]
[1758571170318,1.14121449,112340.0,112330.0,0.81150405]
[1758571170530,1.14121449,112340.0,112330.0,0.42646405]
[1758571170756,1.16443449,112340.0,112330.0,0.81150405]
[1758571170955,1.14171449,112340.0,112330.0,0.81150405]
[1758571171168,1.14171449,112340.0,112330.0,0.83494405]
[1758571171605,1.17396639,112340.0,112330.0,0.18641776]
[1758571171811,1.70260472,112340.0,112330.0,0.00634094]
[1758571172236,1.73236344,112340.0,112330.0,0.19910094]
[1758571172441,1.74890886,112340.0,112330.0,0.00634094]
[1758571172679,1.74890886,112340.0,112330.0,0.20046094]
[1758571172932,1.83417853,112340.0,112330.0,0.20046094]
[1758571173106,1.84865504,112340.0,112330.0,0.20046094]
[1758571173794,1.76338537,112340.0,112330.0,0.32479103]
[1758571174020,1.73671665,112340.0,112330.0,0.29510094]
[1758571174427,1.76338537,112340.0,112330.0,0.29510094]
[1758571174622,1.76348537,112340.0,112330.0,0.29510094]
[1758571175617,1.73681665,112340.0,112330.0,0.29510094]
[1758571176263,1.69164528,112340.0,112330.0,0.29510094]
[1758571176471,1.73372665,112340.0,112330.0,0.29510094]
[1758571176884,1.73681665,112340.0,112330.0,0.29510094]
[1758571178072,1.73681665,112340.0,112330.0,0.00634094]
[1758571178430,1.84875504,112340.0,112330.0,0.00634094]
[1758571178644,2.83091712,112340.0,112330.0,0.00634094]
[1758571179050,1.84875504,112340.0,112330.0,0.00634094]
[1758571179259,2.85794808,112340.0,112330.0,0.00634094]
[1758571179467,3.90517308,112340.0,112330.0,0.00634094]
[1758571180098,3.90317308,112340.0,112330.0,0.00634094]
[1758571180324,3.90417308,112340.0,112330.0,0.00634094]
[1758571180944,3.61545308,112340.0,112330.0,0.00634094]
[1758571181168,3.91267308,112340.0,112330.0,0.00634094]
[1758571181387,3.91067308,112340.0,112330.0,0.00034094]
[1758571181759,3.96267308,112340.0,112330.0,0.00334094]
[1758571184423,3.96167308,112340.0,112330.0,0.00034094]
[1758571184681,3.67195308,112340.0,112330.0,0.00334094]
[1758571184894,3.96867308,112340.0,112330.0,0.00334094]
[1758571185132,3.96767308,112340.0,112330.0,0.00334094]
[1758571185336,3.67995308,112340.0,112330.0,0.00334094]
[1758571185741,1.71562892,112340.0,112330.0,0.00334094]
[1758571185963,3.61627712,112340.0,112330.0,0.00334094]
[1758571186387,2.29539504,112340.0,112330.0,0.00334094]
[1758571186599,2.29230504,112340.0,112330.0,0.00334094]
[1758571186796,2.25209904,112340.0,112330.0,0.00334094]
[1758571187022,2.51415032,112340.0,112330.0,0.00334094]
[1758571187591,2.51724032,112340.0,112330.0,0.00334094]
[1758571187818,2.22852032,112340.0,112330.0,0.00334094]
[1758571188031,2.51724032,112340.0,112330.0,0.00334094]
[1758571188479,2.22543032,112340.0,112330.0,0.00543094]
[1758571188678,1.96996132,112340.0,112330.0,0.00865094]
[1758571189159,1.78522495,112340.0,112330.0,0.00865094]
[1758571189375,0.3545732,112340.0,112330.0,0.03209094]
[1758571189618,1.05451929,112340.0,112330.0,0.07716212]
[1758571189857,1.00989088,112340.0,112330.0,0.07716212]
[1758571190093,1.33937824,112340.0,112330.0,0.00865094]
[1758571190324,1.33937824,112340.0,112330.0,0.00334094]
[1758571190325,1.74061836,112340.0,112330.0,0.00334094]
[1758571190529,2.7591281,112340.0,112330.0,0.00334094]
[1758571190703,1.77696602,112340.0,112330.0,0.00334094]
[1758571190936,1.77387602,112340.0,112330.0,0.00334094]
[1758571191345,1.86223569,112340.0,112330.0,0.00334094]
[1758571191495,3.37609397,112340.0,112330.0,0.00334094]
[1758571191704,2.40012761,112340.0,112330.0,0.00334094]
[1758571191906,2.68880761,112340.0,112330.0,0.00334094]
[1758571192160,3.67096969,112340.0,112330.0,0.00334094]
[1758571192951,3.38228969,112340.0,112330.0,0.00334094]
[1758571193111,2.66177665,112340.0,112330.0,0.00334094]
[1758571193307,3.64393873,112340.0,112330.0,0.00334094]
[1758571193718,3.35525873,112340.0,112330.0,0.00334094]
[1758571193955,3.67496969,112340.0,112330.0,0.00334094]
[1758571194381,2.69280761,112340.0,112330.0,0.00334094]
[1758571194610,2.40412761,112340.0,112330.0,0.00334094]
[1758571195038,2.66573665,112340.0,112330.0,0.00334094]
[1758571195273,3.64787524,112340.0,112330.0,0.00334094]
[1758571195487,3.64787524,112340.0,112330.0,0.00865094]
[1758571195488,0.74370169,112340.0,112330.0,0.00865094]
[1758571195703,1.36212879,112340.0,112330.0,0.03209094]
[1758571195895,1.68951615,112340.0,112330.0,0.03209094]
[1758571196329,1.71966805,112340.0,112330.0,0.03209094]
[1758571196554,1.71966805,112340.0,112330.0,0.00865094]
[1758571197374,1.74277805,112340.0,112330.0,0.00865094]
[1758571197589,1.74897591,112340.0,112330.0,0.00865094]
[1758571198244,1.72796591,112340.0,112330.0,0.00543094]
[1758571198453,1.72796591,112340.0,112330.0,0.00334094]
[1758571198454,1.77774463,112340.0,112330.0,0.00334094]
[1758571199279,1.77774463,112340.0,112330.0,0.00543094]
[1758571199486,1.75107591,112340.0,112330.0,0.00543094]
[1758571199923,1.77774463,112340.0,112330.0,0.00334094]
[1758571200164,1.77775463,112340.0,112330.0,0.00543094]
[1758571200371,1.75108591,112340.0,112330.0,0.00334094]
[1758571201415,1.8630243,112340.0,112330.0,0.00334094]
[1758571201848,1.86304621,112340.0,112330.0,0.00334094]
[1758571202270,1.83637749,112340.0,112330.0,0.00334094]
[1758571202495,1.83945749,112340.0,112330.0,0.00334094]
[1758571202726,0.85729541,112340.0,112330.0,0.00334094]
[1758571203009,1.83945749,112340.0,112330.0,0.00334094]
[1758571203229,1.81115749,112340.0,112330.0,0.00844094]
[1758571203437,1.72588782,112340.0,112330.0,0.02896094]
[1758571203656,1.67588782,112340.0,112330.0,0.02896094]
[1758571203860,1.72588782,112340.0,112330.0,0.02896094]
[1758571204075,1.72588782,112340.0,112330.0,0.00446094]
[1758571204292,1.75115782,112340.0,112330.0,0.00145094]
[1758571204519,1.73461398,112340.0,112330.0,0.00145094]
[1758571204737,1.75116357,112340.0,112330.0,0.00145094]
[1758571205391,1.70116357,112340.0,112330.0,0.00145094]
[1758571205601,1.75116357,112340.0,112330.0,0.00145094]
[1758571205816,1.74290217,112340.0,112330.0,0.00145094]
[1758571206034,1.75117731,112340.0,112330.0,0.00145094]
[1758571206465,1.74901731,112340.0,112330.0,0.00446094]
[1758571206662,1.69901731,112340.0,112330.0,0.00446094]
[1758571206871,1.34851995,112340.0,112330.0,0.00446094]
[1758571207079,1.34851995,112340.0,112330.0,0.02896094]
[1758571207080,0.40564523,112340.0,112330.0,0.02896094]
[1758571207293,1.06041995,112340.0,112330.0,0.05146379]
[1758571207517,1.40041995,112340.0,112330.0,0.02896094]
[1758571208990,1.40041995,112340.0,112330.0,0.42063529]
[1758571208991,0.63447074,112340.0,112330.0,0.42063529]
[1758571209205,1.33924546,112340.0,112330.0,0.11423061]
[1758571209419,1.31939736,112340.0,112330.0,0.49911061]
[1758571209843,1.31939736,112340.0,112330.0,0.11423061]
[1758571210054,1.36939736,112340.0,112330.0,0.52835989]
[1758571210265,1.31939736,112340.0,112330.0,0.14347989]
[1758571210486,1.36939736,112340.0,112330.0,0.40757989]
[1758571210717,1.31939736,112340.0,112330.0,0.40757989]
[1758571210929,1.36939736,112340.0,112330.0,0.43207989]
[1758571211140,1.69678472,112340.0,112330.0,0.43207989]
[1758571211355,1.31939736,112340.0,112330.0,0.14347989]
[1758571211581,1.36939736,112340.0,112330.0,0.40283061]
[1758571212468,1.31939736,112340.0,112330.0,0.46924397]
[1758571212699,1.07415823,112340.0,112330.0,0.46924397]
[1758571212920,1.12415823,112340.0,112330.0,0.46924397]
[1758571213830,1.12315823,112340.0,112330.0,0.46924397]
[1758571214052,1.07315823,112340.0,112330.0,0.46924397]
[1758571214273,1.11715823,112340.0,112330.0,0.40283061]
[1758571214450,1.12015823,112340.0,112330.0,0.40883061]
[1758571215020,1.12015823,112340.0,112330.0,0.45267791]
[1758571215234,1.12231823,112340.0,112330.0,0.006]